bitfinex-derivatives/quotes_ETHF0:USTF0_20250130
["timestamp","ask_amount","ask_price","bid_price","bid_amount"]
[1738199555525,0.5177,3130.0,3129.9,0.63902]
[1738199555730,0.00479379,3130.1,3130.0,0.639]
[1738199557924,3.2078,3131.2,3130.1,1.59744]
[1738199558234,0.63879,3131.1,3130.8,0.63883]
[1738199558924,3.84657,3131.2,3130.9,0.6388]
[1738199559123,3.2078,3131.2,3131.1,0.63878]
[1738199559322,3.2078,3131.2,3130.6,0.00479379]
[1738199559323,3.84658,3131.2,3130.9,0.63881]
[1738199559937,3.84658,3131.2,3131.0,0.63879]
[1738199559938,3.2078,3131.2,3131.0,0.63879]
[1738199560732,3.2078,3131.2,3130.6,0.00479379]
[1738199560931,3.2078,3131.2,3131.1,0.63878]
[1738199561136,0.00479379,3131.3,3131.2,0.63876]
[1738199561832,0.00479379,3131.3,3130.9,0.5115]
[1738199562339,0.00479379,3131.3,3131.2,0.63876]
[1738199565138,0.00479379,3131.3,3131.1,1.14897]
[1738199565343,0.00479379,3131.3,3130.3,3.2078]
[1738199565533,0.63886,3130.7,3130.1,2.84996121]
[1738199565733,0.63886,3130.7,3129.9,0.63901]
[1738199565943,19.53886,3130.7,3130.0,0.63899]
[1738199566138,19.53886,3130.7,3129.8,3.87656121]
[1738199566338,19.53886,3130.7,3130.0,0.639]
[1738199566538,19.53886,3130.7,3130.2,0.63896]
[1738199566739,19.53886,3130.7,3129.9,3.2078]
[1738199566945,19.53886,3130.7,3130.2,0.63895]
[1738199568139,0.63886,3130.7,3130.2,0.63895]
[1738199568536,0.63886,3130.7,3129.8,3.34926121]
[1738199568840,0.63886,3130.7,3129.8,0.4993]
[1738199569346,19.53886,3130.7,3129.8,1.13834]
[1738199570238,0.63886,3130.7,3129.8,1.13834]
[1738199570648,0.63886,3130.7,3130.0,0.639]
[1738199571749,0.63886,3130.7,3129.8,0.4993]
[1738199572141,0.63886,3130.7,3129.9,0.63902]
[1738199573438,0.63886,3130.7,3130.0,0.639]
[1738199574450,0.63886,3130.7,3130.0,0.63899]
[1738199574641,0.63886,3130.7,3130.1,0.63897]
[1738199575150,0.63886,3130.7,3130.0,0.63899]
[1738199576442,0.63886,3130.7,3129.9,1.14931]
[1738199578143,0.63886,3130.7,3129.9,0.5103]
[1738199579650,0.63886,3130.7,3130.0,0.639]
[1738199580344,0.63886,3130.7,3129.9,0.5103]
[1738199580544,0.63886,3130.7,3130.1,0.63897]
[1738199581037,0.63886,3130.7,3129.9,1.14931]
[1738199581751,0.63886,3130.7,3130.0,0.639]
[1738199581952,1.13916,3130.7,3130.0,0.639]
[1738199582452,1.13916,3130.7,3129.9,0.5103]
[1738199582954,1.13916,3130.7,3130.0,0.63899]
[1738199584548,1.13916,3130.7,3130.1,0.63898]
[1738199584746,1.13916,3130.7,3129.9,0.5103]
[1738199585151,5.5003,3130.7,3129.9,0.5103]
[1738199585350,0.63907,3129.7,3129.6,0.5008]
[1738199585550,0.63907,3129.7,3128.8,2.84996121]
[1738199585551,2.84996121,3129.9,3128.6,3.2078]
[1738199585763,0.63921,3129.0,3128.9,0.5008]
[1738199586056,3.2078,3129.4,3129.1,0.63917]
[1738199586355,3.2078,3129.4,3128.9,0.50559379]
[1738199586656,0.63918,3129.2,3128.9,1.14480379]
[1738199587059,0.63918,3129.2,3129.0,0.63921]
[1738199587661,0.63918,3129.2,3128.9,0.50559379]
[1738199587855,0.63918,3129.2,3128.9,1.14480379]
[1738199588561,0.63918,3129.2,3128.9,1.14481379]
[1738199589353,0.63918,3129.2,3128.9,0.50559379]
[1738199589559,3.2078,3129.4,3129.2,0.63917]
[1738199589761,3.84694,3129.4,3129.1,0.63918]
[1738199590556,3.84693,3129.4,3129.1,0.63917]
[1738199590756,3.2078,3129.4,3129.2,0.63916]
[1738199591165,3.2078,3129.4,3129.3,0.5173]
[1738199591762,3.2078,3129.4,3129.3,1.15645]
[1738199592158,3.84693,3129.4,3129.3,0.5173]
[1738199592364,0.63921,3129.0,3128.9,0.50559379]
[1738199592762,0.5065,3129.3,3128.9,0.50559379]
[1738199593070,0.63917,3129.2,3128.9,0.50559379]
[1738199593279,0.5065,3129.3,3128.9,0.50559379]
[1738199593484,0.63921,3129.0,3128.9,0.50559379]
[1738199593875,0.6392,3129.1,3128.9,0.50559379]
[1738199594075,0.63917,3129.2,3129.0,0.6392]
[1738199594275,0.63917,3129.2,3128.9,1.14481379]
[1738199594783,0.63917,3129.2,3128.9,0.50559379]
[1738199594974,3.2078,3129.4,3129.0,0.63921]
[1738199595173,3.2078,3129.4,3128.9,0.50559379]
[1738199595174,0.63919,3129.1,3128.9,1.14482379]
[1738199595375,0.63918,3129.2,3128.9,1.14482379]
[1738199596187,0.63921,3129.0,3128.9,0.50559379]
[1738199596680,3.84701,3129.0,3128.9,0.50559379]
[1738199599888,3.2078,3129.4,3128.9,0.50559379]
[1738199600181,0.6392,3129.1,3128.9,0.50559379]
[1738199600683,0.63919,3129.1,3128.9,1.14481379]
[1738199600887,3.2078,3129.4,3128.9,1.14481379]
[1738199601289,3.2078,3129.4,3128.9,0.50559379]
[1738199601588,0.63916,3129.3,3129.1,0.63918]
[1738199602082,0.63916,3129.3,3129.2,0.5182]
[1738199602587,3.84694,3129.4,3129.2,0.5182]
[1738199602787,3.2078,3129.4,3129.2,0.5182]
[1738199603283,3.2078,3129.4,3129.2,1.15735]
[1738199603488,3.2078,3129.4,3129.3,0.63915]
[1738199603788,3.2078,3129.4,3129.2,1.15736]
[1738199604480,3.2078,3129.4,3129.3,0.63915]
[1738199607283,0.00479379,3129.6,3129.5,0.63911]
[1738199608084,0.00479379,3129.6,3129.5,1.17691]
[1738199608597,3.2078,3130.2,3130.0,0.639]
[1738199608891,3.84676,3130.2,3130.1,0.5484]
[1738199609285,3.2078,3130.2,3130.1,1.18738]
[1738199610194,0.00479379,3130.5,3130.4,0.63892]
[1738199611588,0.63876,3131.2,3130.9,0.63881]
[1738199612403,22.1078,3131.3,3130.7,0.5489]
[1738199612589,22.74655,3131.3,3130.9,0.6388]
[1738199612786,22.75134379,3131.3,3130.9,0.6388]
[1738199612991,3.21259379,3131.3,3130.7,0.55369379]
[1738199613187,3.21259379,3131.3,3131.1,0.63878]
[1738199613393,3.21259379,3131.3,3131.2,0.5014]
[1738199613788,3.85133379,3131.3,3131.2,0.5014]
[1738199614790,3.21259379,3131.3,3131.2,0.5014]
[1738199614990,3.85133379,3131.3,3131.2,0.5014]
[1738199617901,3.21259379,3131.3,3130.7,0.00479379]
[1738199618102,0.5384,3131.2,3130.7,0.00479379]
[1738199618393,1.0677,3131.2,3130.7,0.00479379]
[1738199618599,0.63882,3131.0,3130.7,0.00479379]
[1738199618793,0.63883,3130.9,3130.7,0.00479379]
[1738199619195,0.63881,3131.0,3130.7,0.00479379]
[1738199619700,0.63882,3130.9,3130.7,0.00479379]
[1738199620197,0.63878,3131.1,3130.7,0.00479379]
[1738199620506,0.63884,3130.8,3130.7,0.00479379]
[1738199623590,3.2078,3130.9,3130.7,0.00479379]
[1738199623796,0.63879,3131.1,3130.9,0.63882]
[1738199623993,0.5384,3131.2,3130.7,0.00479379]
[1738199624301,0.63881,3131.0,3130.7,0.64364379]
[1738199626299,0.63882,3130.9,3130.7,0.00479379]
[1738199626503,0.63884,3130.8,3130.7,0.00479379]
[1738199626703,1.68324,3130.8,3130.7,0.00479379]
[1738199627397,3.89436121,3130.8,3129.9,3.7466]
[1738199627603,3.2078,3130.3,3129.9,3.7466]
[1738199627796,1.14448,3130.2,3130.0,0.639]
[1738199627998,1.14448,3130.2,3129.9,3.7466]
[1738199628197,1.14448,3130.2,3129.9,4.38561]
[1738199629199,0.5055,3130.2,3129.9,3.7466]
[1738199629404,3.2078,3130.3,3129.9,3.7466]
[1738199629405,3.2078,3130.3,3130.2,0.63896]
[1738199630401,3.2078,3130.9,3130.6,0.63888]
[1738199630611,3.2078,3130.9,3130.8,0.63884]
[1738199631000,3.2078,3130.9,3130.8,1.18704]
[1738199635698,3.19213,3132.9,3130.8,1.18704]
[1738199635699,3.21259379,3131.3,3131.2,0.63876]
[1738199635904,0.00479379,3131.3,3131.2,0.63876]
[1738199638007,0.00479379,3131.3,3131.0,2.84996121]
[1738199638212,0.00479379,3131.3,3131.2,0.63876]
[1738199646805,3.2078,3132.1,3131.2,5.0]
[1738199647010,3.2078,3132.1,3132.0,0.6386]
[1738199647821,0.5207,3132.3,3132.2,0.63856]
[1738199648510,0.00479379,3132.4,3132.3,0.63853]
[1738199651223,0.64330379,3132.4,3132.2,0.63854]
[1738199651423,0.64330379,3132.4,3132.0,0.4994]
[1738199651614,0.00479379,3132.4,3132.3,0.63853]
[1738199653222,0.00479379,3132.4,3132.0,0.4994]
[1738199653414,0.00479379,3132.4,3132.2,0.63854]
[1738199653722,0.00479379,3132.4,3132.3,0.63853]
[1738199654320,0.64330379,3132.4,3132.2,0.63854]
[1738199654819,18.9,3132.3,3132.2,0.63854]
[1738199656630,0.00479379,3132.4,3132.3,0.63853]
[1738199657224,18.90479379,3132.4,3132.3,0.63853]
[1738199657725,0.00479379,3132.4,3132.3,0.63853]
[1738199657912,0.00479379,3132.4,3132.0,0.4994]
[1738199658112,0.00479379,3132.4,3132.2,0.63854]
[1738199658317,0.00479379,3132.4,3132.3,0.63853]
[1738199658518,0.00479379,3132.4,3132.0,0.4994]
[1738199658718,0.64330379,3132.4,3132.2,0.63854]
[1738199659824,0.64330379,3132.4,3132.3,0.63853]
[1738199660424,0.64330379,3132.4,3132.2,0.63854]
[1738199660625,0.64330379,3132.4,3132.0,0.4994]
[1738199660826,0.00479379,3132.4,3132.3,0.63853]
[1738199662317,0.00479379,3132.4,3132.3,3.84633]
[1738199662626,0.6384,3133.0,3132.8,0.63842]
[1738199663424,0.63838,3133.1,3132.9,0.6384]
[1738199663727,0.63839,3133.0,3132.8,0.63842]
[1738199664332,20.49809379,3133.2,3132.7,0.526]
[1738199664539,21.13645379,3133.2,3132.7,0.526]
[1738199664833,0.55309379,3133.2,3133.1,0.63837]
[1738199665017,0.00479379,3133.2,3133.1,0.63837]
[1738199667525,3.79e-06,3133.2,3133.1,0.63837]
[1738199668427,3.79e-06,3133.2,3133.1,5.63837]
[1738199669529,0.5337,3134.0,3133.9,0.63821]
[1738199669832,3.2078,3134.1,3134.0,0.63819]
[1738199670333,0.5148,3134.3,3133.9,2.84996121]
[1738199670532,0.5148,3134.3,3134.2,0.63815]
[1738199670734,0.5148,3134.3,3134.1,0.63816]
[1738199671032,0.5148,3134.3,3133.9,2.84996121]
[1738199671228,0.63816,3134.2,3133.9,3.48817121]
[1738199672023,0.63816,3134.2,3134.0,0.63819]
[1738199672526,0.63816,3134.2,3133.9,3.48816121]
[1738199673238,0.63816,3134.2,3133.9,2.84996121]
[1738199673239,0.63815,3134.2,3133.9,2.84996121]
[1738199673429,0.63818,3134.1,3133.9,2.84996121]
[1738199673733,0.63818,3134.1,3133.9,3.48817121]
[1738199674636,0.63816,3134.2,3134.0,0.63819]
[1738199676030,0.63816,3134.2,3133.9,2.84996121]
[1738199676235,0.63816,3134.2,3134.0,0.63818]
[1738199677433,1.15294,3134.3,3133.9,2.84996121]
[1738199677639,0.5148,3134.3,3134.0,0.63819]
[1738199677839,0.63817,3134.2,3133.9,3.48816121]
[1738199678038,0.63817,3134.2,3134.0,0.63818]
[1738199679132,0.63817,3134.1,3133.9,3.48816121]
[1738199679542,0.5148,3134.3,3133.9,3.48816121]
[1738199680040,0.63817,3134.1,3133.9,3.48816121]
[1738199680341,1.15294,3134.3,3133.9,2.84996121]
[1738199680640,0.63816,3134.2,3134.0,0.63818]
[1738199682135,0.5148,3134.3,3133.9,3.48816121]
[1738199682339,0.63817,3134.1,3133.9,3.48816121]
[1738199684645,0.63821,3133.9,3133.8,0.00478606]
[1738199685230,0.5265,3134.0,3133.8,0.00478606]
[1738199685436,1.1647,3134.0,3133.8,0.64300606]
[1738199685636,0.63818,3134.1,3133.9,2.84996121]
[1738199685837,0.63817,3134.1,3133.9,2.84996121]
[1738199686044,0.63817,3134.1,3133.9,3.48816121]
[1738199687144,0.63819,3134.0,3133.9,2.84996121]
[1738199688044,0.63821,3133.9,3133.8,0.00478606]
[1738199688246,1.15771,3133.9,3133.8,0.00478606]
[1738199689946,0.6382,3134.0,3133.8,0.64300606]
[1738199690146,0.63821,3133.9,3133.8,0.00478606]
[1738199692550,0.63821,3133.9,3133.8,0.64301606]
[1738199693355,0.63821,3133.9,3133.8,0.00478606]
[1738199693855,3.84601,3133.9,3133.8,0.00478606]
[1738199694351,3.2078,3133.9,3133.8,0.00478606]
[1738199694555,3.7226,3134.3,3134.2,0.63815]
[1738199694746,3.7226,3134.3,3134.2,0.4564115]
[1738199696851,3.2078,3134.3,3134.2,0.4564115]
[1738199698059,3.2078,3135.2,3134.3,2.23346]
[1738199698353,0.63796,3135.1,3135.0,2.84996121]
[1738199698559,0.5264,3135.4,3135.0,2.84996121]
[1738199699053,0.63794,3135.3,3135.0,0.63797]
[1738199699446,0.63794,3135.3,3135.1,0.63796]
[1738199699653,0.5264,3135.4,3135.3,0.63792]
[1738199699853,0.5264,3135.4,3135.0,2.84996121]
[1738199700055,1.16431,3135.4,3135.1,1.18905]
[1738199700254,0.5264,3135.4,3135.1,0.5511]
[1738199700452,0.63793,3135.3,3135.1,0.5511]
[1738199700761,0.5264,3135.4,3135.1,1.18906]
[1738199700762,1.16432,3135.4,3135.1,1.18906]
[1738199700955,0.5264,3135.4,3135.1,0.5511]
[1738199701150,0.5264,3135.4,3135.3,0.63792]
[1738199702257,3.2078,3135.6,3135.5,0.63788]
[1738199702456,3.2078,3135.6,3135.3,2.84996121]
[1738199702457,3.2078,3135.6,3135.4,0.63789]
[1738199702861,3.2078,3135.6,3135.3,2.84996121]
[1738199703055,3.2078,3135.6,3135.4,0.6379]
[1738199703254,3.2078,3135.6,3135.5,0.63788]
[1738199704054,3.2078,3135.6,3135.3,2.84996121]
[1738199704254,3.2078,3135.6,3135.5,0.63788]
[1738199704555,3.2078,3135.6,3135.2,0.4992]
[1738199704760,3.7551,3135.6,3135.2,0.4992]
[1738199705057,3.7551,3135.6,3135.4,0.6379]
[1738199705251,3.7551,3135.6,3135.2,0.4992]
[1738199705457,0.63789,3135.5,3135.2,1.13713]
[1738199705650,3.7551,3135.6,3135.2,0.4992]
[1738199705858,3.2078,3135.6,3135.5,0.63788]
[1738199706652,1.52738726,3135.6,3135.5,0.63788]
[1738199706859,3.2078,3137.2,3136.5,0.63767]
[1738199707160,1.0318,3136.8,3136.5,0.63767]
[1738199707363,0.5116,3136.8,3136.7,2.84996121]
[1738199707564,0.5116,3136.8,3136.7,3.48760121]
[1738199707861,0.5116,3136.8,3136.7,6.69540121]
[1738199708457,18.9,3137.1,3136.7,6.05776121]
[1738199708759,18.9,3137.1,3136.9,0.6376]
[1738199708954,1.14913,3137.3,3136.7,6.05776121]
[1738199709159,1.14913,3137.3,3137.0,0.63758]
[1738199709567,18.9,3137.2,3137.0,0.63758]
[1738199710462,18.9,3137.2,3136.9,0.6376]
[1738199711064,19.53754,3137.2,3136.9,0.6376]
[1738199711263,19.53754,3137.2,3136.7,6.05776121]
[1738199711264,18.9,3137.2,3136.7,6.05776121]
[1738199711566,0.546,3137.1,3136.9,0.6376]
[1738199711765,0.546,3137.1,3136.7,6.05776121]
[1738199711766,0.546,3137.1,3136.8,0.63761]
[1738199712159,0.546,3137.1,3136.9,0.6376]
[1738199712659,0.546,3137.1,3136.7,6.05776121]
[1738199713157,0.546,3137.1,3136.9,0.63759]
[1738199713857,18.9,3137.2,3136.7,6.05776121]
[1738199714257,18.9,3137.2,3137.0,0.63757]
[1738199714455,18.9,3137.2,3137.1,0.63756]
[1738199714956,18.9,3137.2,3136.7,6.05776121]
[1738199715165,18.9,3137.2,3137.0,0.63757]
[1738199715952,0.63762,3136.8,3136.7,3.2078]
[1738199716259,0.63762,3136.8,3136.5,1.0974]
[1738199716260,0.63766,3136.6,3136.5,0.5501]
[1738199716457,2.17135,3136.7,3136.4,0.64248606]
[1738199716854,1.5337,3136.7,3136.4,2.85474727]
[1738199717160,0.5018,3136.7,3136.6,0.63766]
[1738199717365,0.5018,3136.7,3136.4,6.06254727]
[1738199717366,0.5018,3136.7,3136.5,0.63767]
[1738199718555,0.5018,3136.7,3136.4,6.06254727]
[1738199718763,0.5018,3136.7,3136.6,0.63766]
[1738199719159,0.5018,3136.7,3136.5,0.63767]
[1738199719359,0.5018,3136.7,3136.6,0.63766]
[1738199721968,0.6376,3136.9,3136.5,0.508]
[1738199722359,0.5226,3137.0,3136.5,0.508]
[1738199722563,1.16018,3137.0,3136.5,0.508]
[1738199722856,0.5226,3137.0,3136.5,0.508]
[1738199723063,0.63761,3136.9,3136.6,0.63766]
[1738199724263,0.63765,3136.7,3136.5,0.508]
[1738199724462,0.63765,3136.7,3136.4,6.70023727]
[1738199724762,0.5226,3137.0,3136.4,6.06254727]
[1738199724960,0.63762,3136.8,3136.6,0.63765]
[1738199725560,0.63761,3136.9,3136.4,6.06254727]
[1738199725766,1.1602,3137.0,3136.7,0.63763]
[1738199725968,0.6376,3136.9,3136.8,0.5351]
[1738199726169,0.63764,3136.7,3136.5,0.63767]
[1738199726464,0.63763,3136.8,3136.5,0.63767]
[1738199726664,0.63763,3136.8,3136.6,0.63765]
[1738199726868,0.63764,3136.7,3136.5,0.63767]
[1738199727171,0.63764,3136.7,3136.4,6.70022727]
[1738199727468,0.6376,3136.9,3136.4,6.06254727]
[1738199727772,0.5226,3137.0,3136.7,2.84996121]
[1738199728067,0.5226,3137.0,3136.9,0.6376]
[1738199728456,0.5226,3137.0,3136.9,1.1579]
[1738199729865,0.63753,3137.3,3136.9,1.1579]
[1738199729866,0.63754,3137.2,3137.0,0.63757]
[1738199730067,0.5173,3137.5,3137.0,2.84996121]
[1738199730366,3.84518,3138.0,3137.4,0.6375]
[1738199730570,3.2078,3138.0,3137.9,3.48736121]
[1738199731167,3.2078,3138.0,3137.7,0.5106]
[1738199731463,3.2078,3138.0,3137.6,3.2078]
[1738199731868,0.63743,3137.8,3137.6,3.2078]
[1738199732076,0.63743,3137.8,3137.6,3.84526]
[1738199732375,0.5303,3137.7,3137.6,3.2078]
[1738199732673,0.5303,3137.7,3137.3,2.84996121]
[1738199732870,0.63748,3137.5,3137.3,2.84996121]
[1738199733059,0.5303,3137.7,3137.0,3.88346121]
[1738199733379,0.63751,3137.4,3137.1,0.63755]
[1738199733571,0.5303,3137.7,3137.0,3.88346121]
[1738199733972,0.63751,3137.4,3137.1,0.63755]
[1738199734573,0.63748,3137.5,3137.3,0.63752]
[1738199734774,0.5303,3137.7,3137.0,3.88346121]
[1738199734970,0.6375,3137.4,3137.2,0.63753]
[1738199735171,0.63747,3137.6,3137.3,0.6375]
[1738199735470,0.5335905,3137.7,3137.6,0.63746]
[1738199735871,0.5335905,3137.7,3137.5,0.63747]
[1738199736967,0.5335905,3137.7,3137.0,3.88346121]
[1738199737175,0.63756,3137.1,3137.0,0.5106]
[1738199737873,3.2078,3137.6,3137.0,0.5106]
[1738199738178,0.63756,3137.1,3137.0,0.5106]
[1738199738778,3.2078,3137.6,3136.7,3.38146121]
[1738199738974,0.6376,3136.9,3136.7,4.51879121]
[1738199740273,0.5304,3137.0,3136.7,3.88116121]
[1738199740476,1.16799,3137.0,3136.8,0.63761]
[1738199740872,0.6376,3136.9,3136.7,1.0312]
[1738199741072,1.16799,3137.0,3136.8,0.63761]
[1738199741276,0.5304,3137.0,3136.7,1.0312]
[1738199741579,3.2078,3137.2,3136.7,3.88116121]
[1738199741879,0.63757,3137.1,3136.9,0.63759]
[1738199742077,0.5321,3137.4,3137.0,2.84996121]
[1738199742381,0.0032905,3137.7,3137.3,0.6375]
[1738199742576,0.63746,3137.6,3137.4,0.5167]
[1738199742879,0.0032905,3137.7,3137.4,0.5167]
[1738199743080,0.63748,3137.5,3137.4,0.5167]
[1738199743271,0.0032905,3137.7,3137.4,0.5167]
[1738199743475,0.63748,3137.5,3137.4,0.5167]
[1738199745481,0.63754,3137.2,3137.0,3.48753121]
[1738199745681,0.0032905,3137.7,3137.0,4.00813121]
[1738199745881,0.6375,3137.4,3137.0,3.37056121]
[1738199746086,0.63748,3137.5,3137.3,0.63751]
[1738199746384,0.63753,3137.3,3137.1,0.63755]
[1738199746774,0.63753,3137.3,3137.2,0.5192]
[1738199747384,0.63755,3137.2,3137.0,4.00813121]
[1738199747576,0.0032905,3137.7,3137.0,3.88976121]
[1738199747777,3.2078,3137.5,3137.0,1.0398]
[1738199747977,0.63756,3137.1,3137.0,0.5206]
[1738199750479,1.5829,3137.3,3136.7,4.00678121]
[1738199750685,1.5829,3137.3,3136.7,3.88186121]
[1738199750884,1.5829,3137.3,3136.7,1.0319]
[1738199750885,0.63762,3136.8,3136.7,1.0319]
[1738199752184,1.5829,3137.3,3136.7,1.0319]
[1738199752386,0.63761,3136.9,3136.7,1.66953]
[1738199752586,1.5829,3137.3,3136.8,0.63761]
[1738199752894,0.63758,3137.0,3136.8,0.63761]
[1738199753283,0.63758,3137.0,3136.7,4.51949121]
[1738199753486,1.5829,3137.3,3136.7,1.0319]
[1738199753691,0.63762,3136.8,3136.7,1.0319]
[1738199754796,1.5829,3137.3,3136.7,1.0319]
[1738199754985,0.63762,3136.8,3136.7,1.0319]
[1738199755485,0.63767,3136.6,3136.4,6.06254727]
[1738199755685,0.63765,3136.7,3136.5,0.63767]
[1738199757385,0.5503,3136.9,3136.5,0.63767]
[1738199757584,0.63765,3136.7,3136.4,6.70022727]
[1738199757790,0.63765,3136.7,3136.5,0.63767]
[1738199758088,0.5503,3136.9,3136.4,3.21258606]
[1738199758285,0.63768,3136.5,3136.4,3.21258606]
[1738199758485,0.5503,3136.9,3136.4,3.21258606]
[1738199758685,0.63765,3136.7,3136.5,0.63767]
[1738199759282,0.5503,3136.9,3136.4,6.06254727]
[1738199759488,0.63761,3136.9,3136.4,6.06254727]
[1738199759687,0.63761,3136.9,3136.6,0.63764]
[1738199759883,3.2078,3137.0,3136.4,6.06254727]
[1738199760088,0.63763,3136.8,3136.5,0.63767]
[1738199760597,0.63765,3136.7,3136.5,0.63767]
[1738199760898,0.63768,3136.5,3136.4,3.21258606]
[1738199761088,0.63768,3136.5,3136.4,0.00478606]
[1738199761493,1.68958,3136.5,3136.4,0.00478606]
[1738199761795,20.58958,3136.5,3136.4,0.00478606]
[1738199761996,19.53768,3136.5,3136.4,0.00478606]
[1738199762196,18.9,3136.5,3136.4,0.64248606]
[1738199763092,18.9,3136.5,3136.4,1.14858606]
[1738199763391,0.63763,3136.8,3136.6,0.63765]
[1738199763595,0.5388,3137.0,3136.4,6.56864727]
[1738199763797,0.63763,3136.8,3136.5,0.63768]
[1738199764192,0.63765,3136.7,3136.5,0.63768]
[1738199764497,0.5388,3137.0,3136.4,3.36084727]
[1738199764691,0.63763,3136.8,3136.6,0.63766]
[1738199765786,0.63763,3136.8,3136.5,0.63767]
[1738199766089,0.63763,3136.8,3136.6,0.63766]
[1738199766793,0.63763,3136.8,3136.5,0.63767]
[1738199768206,0.63764,3136.7,3136.5,0.63767]
[1738199768503,0.63764,3136.8,3136.5,0.63768]
[1738199768705,0.5388,3137.0,3136.5,0.63767]
[1738199769101,0.63764,3136.8,3136.5,0.63767]
[1738199769303,0.63764,3136.8,3136.4,3.36084727]
[1738199769503,0.5388,3137.0,3136.4,3.36084727]
[1738199769913,0.63764,3136.7,3136.6,0.63766]
[1738199770106,0.5216,3137.2,3136.4,3.36084727]
[1738199770306,0.63756,3137.1,3137.0,2.84996121]
[1738199770502,0.63756,3137.1,3137.0,3.39836121]
[1738199770709,0.63756,3137.1,3137.0,0.5484]
[1738199774814,0.63764,3136.8,3136.4,2.85474727]
[1738199775006,3.2078,3136.5,3136.4,0.00478606]
[1738199775214,0.6378,3135.9,3135.8,0.25142858]
[1738199775410,1.0661,3136.4,3135.6,1.0406]
[1738199775718,1.0661,3136.4,3135.8,0.63781]
[1738199775719,0.63777,3136.1,3135.8,0.63781]
[1738199776025,0.63772,3136.3,3136.0,0.63777]
[1738199776210,0.63774,3136.2,3136.1,0.5191]
[1738199776607,0.63773,3136.3,3136.1,0.5191]
[1738199776819,0.63773,3136.3,3136.1,3.7269]
[1738199777021,0.63774,3136.2,3136.1,3.7269]
[1738199779221,0.5231,3136.4,3136.1,3.7269]
[1738199779415,0.63773,3136.3,3136.1,3.7269]
[1738199779719,0.63774,3136.2,3136.1,3.7269]
[1738199781816,0.63773,3136.3,3136.1,4.36466]
[1738199782012,0.5231,3136.4,3136.1,3.7269]
[1738199782319,0.5231,3136.4,3136.2,1.14904]
[1738199782926,0.5231,3136.4,3136.3,0.63772]
[1738199783226,1.16081,3136.4,3136.2,1.14904]
[1738199783524,0.5231,3136.4,3136.2,1.14904]
[1738199783721,0.63772,3136.3,3136.2,0.5113]
[1738199785118,0.00476292,3136.5,3136.2,0.5113]
[1738199785328,0.00476292,3136.5,3136.4,3.48766121]
[1738199788419,3.2078,3137.3,3136.4,3.48766121]
[1738199788420,0.5314,3137.6,3136.5,1.59418]
[1738199788727,0.63751,3137.4,3137.0,0.63758]
[1738199788920,0.63751,3137.4,3137.1,1.17664]
[1738199789225,20.63709,3137.5,3137.3,0.63751]
[1738199789424,19.9996,3137.5,3137.3,0.63751]
[1738199789819,19.4472,3137.5,3137.4,0.6375]
[1738199791128,3.8485305,3137.7,3137.6,0.63746]
[1738199791129,0.0032905,3137.7,3137.6,0.63746]
[1738199791826,0.0032905,3137.7,3137.6,6.69522121]
[1738199795423,0.63746,3137.6,3137.4,0.63749]
[1738199795617,0.63746,3137.6,3137.2,3.97748646]
[1738199795618,0.63751,3137.4,3137.2,0.63754]
[1738199795923,0.0032905,3137.7,3137.3,2.84996121]
[1738199796123,0.5527905,3137.7,3137.6,3.84526]
[1738199796429,0.5527905,3137.7,3137.3,2.84996121]
[1738199796625,0.5527905,3137.7,3137.6,0.63746]
[1738199797433,0.0032905,3137.7,3137.6,3.48742121]
[1738199797629,0.0032905,3137.7,3137.6,6.69522121]
[1738199798834,0.0032905,3137.7,3137.6,0.63746]
[1738199801037,0.0032905,3137.7,3137.6,3.48742121]
[1738199801235,1.18686,3138.1,3137.6,2.84996121]
[1738199801236,0.5495,3138.1,3137.6,2.84996121]
[1738199801539,2.84996121,3139.0,3138.0,3.2078]
[1738199801540,0.5507,3138.6,3138.0,3.2078]
[1738199801728,0.5507,3138.6,3138.5,0.63727]
[1738199801930,19.4507,3138.6,3138.5,0.63727]
[1738199802635,18.9,3138.6,3138.5,0.63727]
[1738199802928,18.9,3138.6,3138.2,2.84996121]
[1738199803134,18.9,3138.6,3138.5,0.63727]
[1738199803336,0.5227,3138.9,3138.8,0.63721]
[1738199803731,0.5227,3138.9,3138.7,0.63722]
[1738199803942,0.5227,3138.9,3138.8,0.63721]
[1738199804544,0.5227,3138.9,3138.8,3.48717121]
[1738199807041,0.5227,3138.9,3138.8,2.84996121]
[1738199807546,20.00495639,3139.2,3139.0,0.63716]
[1738199807847,20.64209639,3139.2,3138.9,1.14928]
[1738199808847,0.63717,3139.0,3138.8,2.84996121]
[1738199809248,0.5298,3138.9,3138.8,2.84996121]
[1738199811050,0.5298,3138.9,3138.8,3.48717121]
[1738199811739,0.5298,3138.9,3138.8,2.84996121]
[1738199812752,0.5298,3138.9,3138.8,3.48717121]
[1738199815138,19.50515639,3139.2,3139.1,0.63715]
[1738199816147,18.9,3139.2,3139.1,0.63715]
[1738199816943,18.9,3139.2,3138.8,6.05776121]
[1738199817149,18.9,3139.2,3139.0,0.63716]
[1738199818853,18.9,3139.2,3138.8,6.05776121]
[1738199819041,19.53714,3139.2,3138.9,0.63719]
[1738199819247,19.53714,3139.2,3139.0,0.63717]
[1738199819441,19.53714,3139.2,3138.8,6.05776121]
[1738199819442,0.4993,3139.4,3139.3,0.63711]
[1738199819756,0.5322,3139.8,3139.2,3.2078]
[1738199819942,1.0572,3139.8,3139.6,0.63704]
[1738199820552,1.0572,3139.8,3139.4,2.84996121]
[1738199820750,0.525,3139.8,3139.4,2.84996121]
[1738199820955,0.525,3139.8,3139.6,0.63704]
[1738199821258,1.16201,3139.8,3139.6,0.63704]
[1738199821950,1.16201,3139.8,3139.5,0.63706]